{"text_format":"1","workbook":"xlsx","n_sheets":10,"sheets":["Method 1","Method 2","Method 3","Method 4","Method 5","Table1","Method 6","Method 7","Method 7 (2)","LSI"],"not_rendered":{"charts":0,"images":0,"macros":1,"external_links":0,"defined_names":1,"comments":0,"pivot_tables":0},"unopened":[],"bounds":{"document_bytes":16777216,"sheet_cells":100000,"rows_first":2000,"rows_last":500,"rows_between":2000,"halvings":0,"cell_chars":16384,"cell_head_chars":4096},"cells_cut":0,"cells_raw":0,"read":"whole","date_system":"1900"}

{"sheet":"Method 1","index":0,"n_rows":11,"n_cols":10,"rows_kept":11,"cut":false,"hidden":false,"merged":[[2,1,2,3],[2,7,2,9]]}
[]
[]
[null,"FIFA World Cup Winner 2002-2022",null,null,null,null,null,"For Practice"]
[]
[null,"Teams","Year","Winner Info",null,null,null,"Teams","Year","Winner Info"]
[null,"Brazil",2002,{"$f":"B6&\"-\"&C6","v":"Brazil-2002"},null,null,null,"Brazil",2002]
[null,"Italy",2006,"Italy-2006",null,null,null,"Italy",2006]
[null,"Spain",2010,"Spain-2010",null,null,null,"Spain",2010]
[null,"Germany",2014,"Germany-2014",null,null,null,"Germany",2014]
[null,"France",2018,"France-2018",null,null,null,"France",2018]
[null,"Argentina",2022,"Argentina-2022",null,null,null,"Argentina",2022]

{"sheet":"Method 2","index":1,"n_rows":11,"n_cols":10,"rows_kept":11,"cut":false,"hidden":false,"merged":[[2,1,2,3],[2,7,2,9]]}
[]
[]
[null,"FIFA World Cup Winner 2002-2022",null,null,null,null,null,"For Practice"]
[]
[null,"Teams","Year","Winner Info",null,null,null,"Teams","Year","Winner Info"]
[null,"Brazil",2002,{"$f":"CONCATENATE(B6,\"-\",C6)","v":"Brazil-2002"},null,null,null,"Brazil",2002]
[null,"Italy",2006,"Italy-2006",null,null,null,"Italy",2006]
[null,"Spain",2010,"Spain-2010",null,null,null,"Spain",2010]
[null,"Germany",2014,"Germany-2014",null,null,null,"Germany",2014]
[null,"France",2018,"France-2018",null,null,null,"France",2018]
[null,"Argentina",2022,"Argentina-2022",null,null,null,"Argentina",2022]

{"sheet":"Method 3","index":2,"n_rows":11,"n_cols":10,"rows_kept":11,"cut":false,"hidden":false,"merged":[[2,1,2,3],[2,7,2,9]]}
[]
[]
[null,"FIFA World Cup Winner 2002-2022",null,null,null,null,null,"For Practice"]
[]
[null,"Teams","Year","Winner Info",null,null,null,"Teams","Year","Winner Info"]
[null,"Brazil",2002,{"$f":"_xlfn.CONCAT(B6,\"-\",C6)","v":"Brazil-2002"},null,null,null,"Brazil",2002]
[null,"Italy",2006,"Italy-2006",null,null,null,"Italy",2006]
[null,"Spain",2010,"Spain-2010",null,null,null,"Spain",2010]
[null,"Germany",2014,"Germany-2014",null,null,null,"Germany",2014]
[null,"France",2018,"France-2018",null,null,null,"France",2018]
[null,"Argentina",2022,"Argentina-2022",null,null,null,"Argentina",2022]

{"sheet":"Method 4","index":3,"n_rows":11,"n_cols":10,"rows_kept":11,"cut":false,"hidden":false,"merged":[[2,1,2,3],[2,7,2,9]]}
[]
[]
[null,"FIFA World Cup Winner 2002-2022",null,null,null,null,null,"For Practice"]
[]
[null,"Teams","Year","Winner Info",null,null,null,"Teams","Year","Winner Info"]
[null,"Brazil",2002,{"$f":"_xlfn.TEXTJOIN(\"-\",TRUE,B6,C6)","v":"Brazil-2002"},null,null,null,"Brazil",2002]
[null,"Italy",2006,"Italy-2006",null,null,null,"Italy",2006]
[null,"Spain",2010,"Spain-2010",null,null,null,"Spain",2010]
[null,"Germany",2014,"Germany-2014",null,null,null,"Germany",2014]
[null,"France",2018,"France-2018",null,null,null,"France",2018]
[null,"Argentina",2022,"Argentina-2022",null,null,null,"Argentina",2022]

{"sheet":"Method 5","index":4,"n_rows":11,"n_cols":3,"rows_kept":11,"cut":false,"hidden":false,"merged":[[2,1,2,2]]}
[]
[]
[null,"FIFA World Cup Winner 2002-2022"]
[]
[null,"Teams","Year"]
[null,"Brazil",2002]
[null,"Italy",2006]
[null,"Spain",2010]
[null,"Germany",2014]
[null,"France",2018]
[null,"Argentina",2022]

{"sheet":"Table1","index":5,"n_rows":7,"n_cols":3,"rows_kept":7,"cut":false,"hidden":false,"merged":[]}
["Teams","Year","Team Info"]
["Brazil",2002,"Brazil-2002"]
["Italy",2006,"Italy-2006"]
["Spain",2010,"Spain-2010"]
["Germany",2014,"Germany-2014"]
["France",2018,"France-2018"]
["Argentina",2022,"Argentina-2022"]

{"sheet":"Method 6","index":6,"n_rows":11,"n_cols":10,"rows_kept":11,"cut":false,"hidden":false,"merged":[[2,1,2,3],[2,7,2,9]]}
[]
[]
[null,"FIFA World Cup Winner 2002-2022",null,null,null,null,null,"For Practice"]
[]
[null,"Teams","Year","Winner Info",null,null,null,"Teams","Year","Winner Info"]
[null,"Brazil",2002,"Brazil-2002",null,null,null,"Brazil",2002]
[null,"Italy",2006,"Italy-2006",null,null,null,"Italy",2006]
[null,"Spain",2010,"Spain-2010",null,null,null,"Spain",2010]
[null,"Germany",2014,"Germany-2014",null,null,null,"Germany",2014]
[null,"France",2018,"France-2018",null,null,null,"France",2018]
[null,"Argentina",2022,"Argentina-2022",null,null,null,"Argentina",2022]

{"sheet":"Method 7","index":7,"n_rows":11,"n_cols":4,"rows_kept":11,"cut":false,"hidden":false,"merged":[[2,1,2,3]]}
[]
[]
[null,"Birthday Information"]
[]
[null,"Name","Birthday","Bio"]
[null,"Danial","1995-10-12",{"$f":"_xlfn.CONCAT(B6,\"-\",C6)","v":"Danial-34984"}]
[null,"Amelia","1994-05-09"]
[null,"oliver","1995-03-10"]
[null,"Ava","1995-06-14"]
[null,"Leo","1993-07-25"]
[null,"Ana","1996-11-21"]

{"sheet":"Method 7 (2)","index":8,"n_rows":11,"n_cols":10,"rows_kept":11,"cut":false,"hidden":false,"merged":[[2,1,2,3],[2,7,2,9]]}
[]
[]
[null,"Birthday Information",null,null,null,null,null,"For Practice"]
[]
[null,"Name","Birthday","Bio",null,null,null,"Name","Birthday","Bio"]
[null,"Danial","1995-10-12",{"$f":"_xlfn.CONCAT(B6,\"-\",TEXT(C6,\"MM/DD/YYYY\"))","v":"Danial-10/12/1995"},null,null,null,"Danial","1995-10-12",{"$f":"_xlfn.CONCAT(H6,\"-\",TEXT(I6,\"MM/DD/YYYY\"))","v":"Danial-10/12/1995"}]
[null,"Amelia","1994-05-09",{"$f":"_xlfn.CONCAT(B7,\"-\",TEXT(C7,\"MM/DD/YYYY\"))","v":"Amelia-05/09/1994"},null,null,null,"Amelia","1994-05-09",{"$f":"_xlfn.CONCAT(H7,\"-\",TEXT(I7,\"MM/DD/YYYY\"))","v":"Amelia-05/09/1994"}]
[null,"oliver","1995-03-10","oliver-03/10/1995",null,null,null,"oliver","1995-03-10","oliver-03/10/1995"]
[null,"Ava","1995-06-14","Ava-06/14/1995",null,null,null,"Ava","1995-06-14","Ava-06/14/1995"]
[null,"Leo","1993-07-25","Leo-07/25/1993",null,null,null,"Leo","1993-07-25","Leo-07/25/1993"]
[null,"Ana","1996-11-21","Ana-11/21/1996",null,null,null,"Ana","1996-11-21","Ana-11/21/1996"]

{"sheet":"LSI","index":9,"n_rows":11,"n_cols":10,"rows_kept":11,"cut":false,"hidden":false,"merged":[[2,1,2,3],[2,7,2,9]]}
[]
[]
[null,"FIFA World Cup Winner 2002-2022",null,null,null,null,null,"For Practice"]
[]
[null,"Teams","Year","Winner Info",null,null,null,"Teams","Year","Winner Info"]
[null,"Brazil",2002,{"$f":"_xlfn.TEXTJOIN(\"/\",TRUE,B6,C6)","v":"Brazil/2002"},null,null,null,"Brazil",2002,{"$f":"_xlfn.TEXTJOIN(\"/\",TRUE,H6,I6)","v":"Brazil/2002"}]
[null,"Italy",2006,{"$f":"_xlfn.TEXTJOIN(\"/\",TRUE,B7,C7)","v":"Italy/2006"},null,null,null,"Italy",2006,{"$f":"_xlfn.TEXTJOIN(\"/\",TRUE,H7,I7)","v":"Italy/2006"}]
[null,"Spain",2010,"Spain/2010",null,null,null,"Spain",2010,"Spain/2010"]
[null,"Germany",2014,"Germany/2014",null,null,null,"Germany",2014,"Germany/2014"]
[null,"France",2018,"France/2018",null,null,null,"France",2018,"France/2018"]
[null,"Argentina",2022,"Argentina/2022",null,null,null,"Argentina",2022,"Argentina/2022"]